[Event "Romanian-ch Youth Girls U12 2024"]
[Site "Eforie Nord"]
[Date "2024.04.18"]
[Round "8.2"]
[White "Leca Andrei, Anastasia"]
[Black "Tcaciuc, Smaranda-Maria"]
[Result "1/2-1/2"]
[ECO "D00"]
[WhiteElo "1653"]
[BlackElo "1574"]
[Annotator "NA RC COMBH"]
[PlyCount "156"]
[EventDate "2024.04.10"]
[EventType "swiss"]
[EventCountry "ROU"]
[SourceTitle "playchess.com"]
[Source "ChessBase"]
[SourceQuality "1"]
[TimeControl "5400+30"]

1. d4 {[%emt 0:00:15]} d5 {[%emt 0:00:05]} 2. Bg5 {[%emt 0:00:25]} f6 {[%emt 0:00:38]} 3. Bf4 {[%emt 0:01:04]} c6 {[%emt 0:03:35]} 4. c3 {[%emt 0:03:19]} Bf5 {[%emt 0:02:48]} 5. e3 {[%emt 0:02:55]} e6 {[%emt 0:04:24]} 6. Nf3 {[%emt 0:04:21]} Bd6 {[%emt 0:05:44]} 7. Bg3 {[%emt 0:03:41]} Ne7 {[%emt 0:03:33]} 8. Nh4 {[%emt 0:10:03]} Bxg3 {[%emt 0:07:29]} 9. hxg3 {[%emt 0:00:31]} Nd7 {[%emt 0:00:39]} 10. Nxf5 {[%emt 0:04:55]} Nxf5 {[%emt 0:01:27]} 11. Bd3 {[%emt 0:01:05]} Qb6 {[%emt 0:05:32]} 12. Qc2 {[%emt 0:03:18]} O-O-O {[%emt 0:04:18]} 13. Nd2 {[%emt 0:03:51]} h6 {[%emt 0:01:42]} 14. Bxf5 {[%emt 0:03:38]} exf5 {[%emt 0:00:15]} 15. O-O-O {[%emt 0:03:50]} Qa6 {[%emt 0:04:15]} 16. Kb1 {[%emt 0:02:37]} g6 {[%emt 0:02:22]} 17. Nb3 {[%emt 0:05:28]} h5 {[%emt 0:03:30]} 18. Rh2 {[%emt 0:02:09]} Rhe8 {[%emt 0:08:03]} 19. Nc1 {[%emt 0:07:14]} Nf8 {[%emt 0:03:20]} 20. Re1 {[%emt 0:02:48]} Ne6 {[%emt 0:01:35]} 21. f3 {[%emt 0:04:07]} Re7 {[%emt 0:03:56]} 22. g4 {[%emt 0:03:32]} Ng7 {[%emt 0:02:22]} 23. gxh5 {[%emt 0:04:08]} gxh5 {[%emt 0:02:01]} 24. Nd3 {[%emt 0:04:32]} Rde8 {[%emt 0:01:51]} 25. Qd2 {[%emt 0:01:28]} Qb6 {[%emt 0:00:33]} 26. Nf4 {[%emt 0:02:41]} Qc7 {[%emt 0:00:11]} 27. g3 {[%emt 0:02:01]} Qd6 {[%emt 0:09:37]} 28. Qf2 {[%emt 0:01:59]} b5 {[%emt 0:04:32]} 29. Nxh5 {[%emt 0:02:58]} Nxh5 {[%emt 0:01:00]} 30. Rxh5 {[%emt 0:00:01]} f4 {[%emt 0:00:17]} 31. gxf4 {[%emt 0:01:27]} Qxf4 {[%emt 0:01:00]} 32. Rh4 {[%emt 0:02:40]} Qf5+ {[%emt 0:00:24]} 33. Kc1 {[%emt 0:02:58]} Qd3 {[%emt 0:03:10]} 34. Qd2 {[%emt 0:00:49]} Qxd2+ {[%emt 0:01:26]} 35. Kxd2 {[%emt 0:00:03]} Rg7 {[%emt 0:00:32]} 36. Rh2 {[%emt 0:00:32]} f5 {[%emt 0:01:35]} 37. Rh6 {[%emt 0:01:05]} Kb7 {[%emt 0:00:52]} 38. Rf6 {[%emt 0:00:18]} Rg5 {[%emt 0:00:34]} 39. Re2 {[%emt 0:00:45]} a5 {[%emt 0:00:56]} 40. Kd3 {[%emt 0:00:36]} Re7 {[%emt 0:02:14]} 41. Rh2 {[%emt 0:00:31]} a4 {[%emt 0:00:28]} 42. Rhh6 {[%emt 0:00:15]} Rc7 {[%emt 0:00:11]} 43. Rfg6 {[%emt 0:01:21]} Rxg6 {[%emt 0:00:17]} 44. Rxg6 {[%emt 0:00:02]} Rf7 {[%emt 0:00:09]} 45. Kc2 {[%emt 0:00:33]} Re7 {[%emt 0:00:46]} 46. Kd2 {[%emt 0:00:07]} Rf7 {[%emt 0:00:04]} 47. Rg2 {[%emt 0:00:15]} Rf6 {[%emt 0:00:35]} 48. Re2 {[%emt 0:00:08]} Re6 {[%emt 0:00:19]} 49. Kd3 {[%emt 0:00:08]} Rf6 {[%emt 0:00:51]} 50. a3 {[%emt 0:00:17]} Kb6 {[%emt 0:00:37]} 51. Kc2 {[%emt 0:01:11]} Re6 {[%emt 0:01:25]} 52. Kd2 {[%emt 0:00:48]} Rf6 {[%emt 0:00:21]} 53. Rh2 {[%emt 0:00:17]} c5 {[%emt 0:01:05]} 54. dxc5+ {[%emt 0:00:05]} Kxc5 {[%emt 0:00:06]} 55. Kd3 {[%emt 0:00:17]} Re6 {[%emt 0:00:37]} 56. b4+ {[%emt 0:02:05]} axb3 {[%emt 0:00:13]} 57. Rb2 {[%emt 0:00:04]} Ra6 {[%emt 0:00:20]} 58. Rxb3 {[%emt 0:00:08]} Ra4 {[%emt 0:00:09]} 59. Kc2 {[%emt 0:01:38]} f4 {[%emt 0:00:45]} 60. Rb4 {[%emt 0:00:50]} fxe3 {[%emt 0:01:16]} 61. Rxa4 {[%emt 0:02:14]} e2 {[%emt 0:01:06]} 62. Kd2 {[%emt 0:00:25]} bxa4 {[%emt 0:00:05]} 63. Kxe2 {[%emt 0:00:36]} Kc4 {[%emt 0:00:11]} 64. f4 {[%emt 0:00:11]} Kxc3 {[%emt 0:00:19]} 65. f5 {[%emt 0:00:05]} d4 {[%emt 0:00:23]} 66. f6 {[%emt 0:00:07]} Kc2 {[%emt 0:00:03]} 67. f7 {[%emt 0:00:15]} d3+ {[%emt 0:00:01]} 68. Ke3 {[%emt 0:00:24]} d2 {[%emt 0:00:02]} 69. f8=Q {[%emt 0:00:11]} d1=Q {[%emt 0:00:04]} 70. Qc5+ {[%emt 0:00:17]} Kb3 {[%emt 0:00:14]} 71. Qb4+ {[%emt 0:00:06]} Ka2 {[%emt 0:00:15]} 72. Qd2+ {[%emt 0:02:17]} Qxd2+ {[%emt 0:00:11]} 73. Kxd2 {[%emt 0:00:01]} Kxa3 {[%emt 0:00:11]} 74. Kc3 {[%emt 0:00:08]} Ka2 {[%emt 0:00:04]} 75. Kc2 {[%emt 0:00:05]} a3 {[%emt 0:00:17]} 76. Kc1 {[%emt 0:00:10]} Kb3 {[%emt 0:00:11]} 77. Kb1 {[%emt 0:00:03]} a2+ {[%emt 0:00:13]} 78. Ka1 {[%emt 0:00:03]} Ka3 {[%emt 0:00:02]} 1/2-1/2

[Event "Romanian-ch Youth Girls U12 2024"]
[Site "Eforie Nord"]
[Date "2024.04.19"]
[Round "9.1"]
[White "Tcaciuc, Smaranda-Maria"]
[Black "Cretescu, Emma"]
[Result "0-1"]
[ECO "D53"]
[WhiteElo "1574"]
[BlackElo "1689"]
[Annotator "NA RC COMBH"]
[PlyCount "100"]
[EventDate "2024.04.10"]
[EventType "swiss"]
[EventCountry "ROU"]
[SourceTitle "playchess.com"]
[Source "ChessBase"]
[SourceQuality "1"]
[TimeControl "5400+30"]

1. d4 {[%emt 0:00:03]} d5 {[%emt 0:00:17]} 2. c4 {[%emt 0:00:07]} e6 {[%emt 0:00:18]} 3. Nc3 {[%emt 0:00:18]} Nf6 {[%emt 0:01:32]} 4. Bg5 {[%emt 0:00:33]} Be7 {[%emt 0:00:40]} 5. e3 {[%emt 0:00:22]} a6 {[%emt 0:01:10]} 6. cxd5 {[%emt 0:01:00]} Nxd5 {[%emt 0:03:23]} 7. Bxe7 {[%emt 0:00:24]} Nxe7 {[%emt 0:00:42]} 8. Nf3 {[%emt 0:00:24]} O-O {[%emt 0:00:57]} 9. Bd3 {[%emt 0:01:47]} h6 {[%emt 0:03:14]} 10. O-O {[%emt 0:02:06]} Nd7 {[%emt 0:00:53]} 11. Qc2 {[%emt 0:04:13]} b6 {[%emt 0:02:52]} 12. Rad1 {[%emt 0:05:31]} Bb7 {[%emt 0:01:34]} 13. e4 {[%emt 0:01:25]} Nf6 {[%emt 0:07:12]} 14. Rfe1 {[%emt 0:03:17]} Nc6 {[%emt 0:02:43]} 15. e5 {[%emt 0:00:51]} Nb4 {[%emt 0:02:54]} 16. Qe2 {[%emt 0:01:52]} Nxd3 {[%emt 0:01:00]} 17. Qxd3 {[%emt 0:00:07]} Nd5 {[%emt 0:01:36]} 18. Nxd5 {[%emt 0:02:09]} Qxd5 {[%emt 0:00:56]} 19. b3 {[%emt 0:00:58]} Rfd8 {[%emt 0:05:16]} 20. Qc3 {[%emt 0:04:30]} Rd7 {[%emt 0:05:35]} 21. a3 {[%emt 0:07:24]} Rad8 {[%emt 0:03:31]} 22. Rd2 {[%emt 0:02:24]} Qc6 {[%emt 0:03:43]} 23. Qxc6 {[%emt 0:01:20]} Bxc6 {[%emt 0:00:03]} 24. Rc1 {[%emt 0:01:41]} Bxf3 {[%emt 0:01:02]} 25. gxf3 {[%emt 0:00:08]} c5 {[%emt 0:02:18]} 26. Kg2 {[%emt 0:02:16]} Rxd4 {[%emt 0:00:53]} 27. Rdc2 {[%emt 0:02:22]} R8d5 {[%emt 0:01:09]} 28. Re1 {[%emt 0:01:30]} Rd3 {[%emt 0:00:49]} 29. Rb2 {[%emt 0:01:33]} Rc3 {[%emt 0:01:48]} 30. a4 {[%emt 0:01:11]} a5 {[%emt 0:00:43]} 31. f4 {[%emt 0:08:26]} Rdd3 {[%emt 0:00:57]} 32. Re4 {[%emt 0:02:15]} Rxb3 {[%emt 0:00:41]} 33. Rxb3 {[%emt 0:02:17]} Rxb3 {[%emt 0:00:31]} 34. Rc4 {[%emt 0:00:10]} Rb4 {[%emt 0:00:13]} 35. Rxb4 {[%emt 0:00:25]} cxb4 {[%emt 0:00:11]} 36. Kf1 {[%emt 0:00:07]} b3 {[%emt 0:00:05]} 37. Ke1 {[%emt 0:00:04]} b2 {[%emt 0:00:07]} 38. Kd2 {[%emt 0:00:03]} b1=Q {[%emt 0:00:11]} 39. Ke3 {[%emt 0:00:05]} b5 {[%emt 0:00:12]} 40. axb5 {[%emt 0:00:07]} a4 {[%emt 0:00:08]} 41. b6 {[%emt 0:00:38]} a3 {[%emt 0:00:05]} 42. b7 {[%emt 0:00:06]} a2 {[%emt 0:00:06]} 43. b8=Q+ {[%emt 0:00:06]} Qxb8 {[%emt 0:00:04]} 44. Kf3 {[%emt 0:00:06]} a1=R {[%emt 0:00:08]} 45. Kg2 {[%emt 0:00:06]} Qb7+ {[%emt 0:00:10]} 46. Kh3 {[%emt 0:00:06]} Qf3+ {[%emt 0:00:09]} 47. Kh4 {[%emt 0:00:03]} g5+ {[%emt 0:00:11]} 48. fxg5 {[%emt 0:00:16]} hxg5+ {[%emt 0:00:12]} 49. Kxg5 {[%emt 0:00:06]} Rg1+ {[%emt 0:00:09]} 50. Kh6 {[%emt 0:00:06]} Qh3# {[%emt 0:00:15]} 0-1

[Event "Romanian-ch Youth Girls U12 2024"]
[Site "Eforie Nord"]
[Date "2024.04.19"]
[Round "9.2"]
[White "Leca Andrei, Anastasia"]
[Black "Sabou, Stefania Theodora"]
[Result "1/2-1/2"]
[ECO "B22"]
[WhiteElo "1653"]
[BlackElo "1612"]
[Annotator "NA RC COMBH"]
[PlyCount "64"]
[EventDate "2024.04.10"]
[EventType "swiss"]
[EventCountry "ROU"]
[SourceTitle "playchess.com"]
[Source "ChessBase"]
[SourceQuality "1"]
[TimeControl "5400+30"]

1. e4 {[%emt 0:00:18]} c5 {[%emt 0:00:11]} 2. c3 {[%emt 0:00:26]} d5 {[%emt 0:00:11]} 3. exd5 {[%emt 0:00:49]} Qxd5 {[%emt 0:00:09]} 4. d4 {[%emt 0:01:10]} cxd4 {[%emt 0:00:28]} 5. cxd4 {[%emt 0:00:57]} Nc6 {[%emt 0:00:31]} 6. Nf3 {[%emt 0:00:56]} Bg4 {[%emt 0:00:26]} 7. Be2 {[%emt 0:01:20]} e6 {[%emt 0:00:28]} 8. Nc3 {[%emt 0:01:42]} Qa5 {[%emt 0:00:30]} 9. O-O {[%emt 0:04:22]} Nf6 {[%emt 0:00:33]} 10. Re1 {[%emt 0:08:04]} Be7 {[%emt 0:01:53]} 11. Be3 {[%emt 0:04:47]} O-O {[%emt 0:00:47]} 12. h3 {[%emt 0:04:23]} Bf5 {[%emt 0:02:26]} 13. Nh4 {[%emt 0:03:27]} Be4 {[%emt 0:06:57]} 14. Nxe4 {[%emt 0:07:25]} Nxe4 {[%emt 0:00:07]} 15. Nf3 {[%emt 0:01:23]} Rad8 {[%emt 0:04:43]} 16. Bc4 {[%emt 0:05:18]} Nf6 {[%emt 0:04:42]} 17. Qe2 {[%emt 0:03:18]} Nd5 {[%emt 0:03:10]} 18. Rad1 {[%emt 0:04:48]} Bf6 {[%emt 0:06:53]} 19. Rd2 {[%emt 0:05:16]} Qb6 {[%emt 0:09:05]} 20. Ne5 {[%emt 0:05:49]} Na5 {[%emt 0:15:03]} 21. Bxd5 {[%emt 0:07:26]} Rxd5 {[%emt 0:00:33]} 22. Red1 {[%emt 0:03:14]} Nc6 {[%emt 0:07:00]} 23. Nxc6 {[%emt 0:05:04]} Qxc6 {[%emt 0:00:05]} 24. f4 {[%emt 0:05:07]} Rfd8 {[%emt 0:01:43]} 25. Qf2 {[%emt 0:01:25]} Qc4 {[%emt 0:03:29]} 26. b3 {[%emt 0:00:23]} Qb4 {[%emt 0:00:21]} 27. g4 {[%emt 0:00:55]} g6 {[%emt 0:00:40]} 28. g5 {[%emt 0:04:04]} Bg7 {[%emt 0:00:45]} 29. h4 {[%emt 0:00:20]} h5 {[%emt 0:00:56]} 30. Kh2 {[%emt 0:00:56]} Qd6 {[%emt 0:01:12]} 31. Kg1 {[%emt 0:01:37]} Qb4 {[%emt 0:01:59]} 32. Kh2 {[%emt 0:01:04]} Qd6 {[%emt 0:00:28]} 1/2-1/2